bitfinex/quotes_BTCUSD_20250408
["timestamp","ask_amount","ask_price","bid_price","bid_amount"]
[1744071276707,0.012572,79538.0,79532.0,0.264041]
[1744071276909,0.012572,79537.0,79529.0,0.057774]
[1744071277620,0.251461,79536.0,79529.0,0.309251]
[1744071277845,0.264026,79538.0,79533.0,0.251466]
[1744071277970,0.012572,79537.0,79532.0,0.013573]
[1744071278181,0.265026,79538.0,79532.0,0.013573]
[1744071278387,0.252452,79538.0,79532.0,0.013573]
[1744071278627,0.001,79538.0,79532.0,0.265041]
[1744071278988,0.012572,79539.0,79534.0,0.264037]
[1744071279212,0.001,79535.0,79534.0,0.264037]
[1744071279951,0.251452,79539.0,79534.0,0.264037]
[1744071280153,0.264027,79537.0,79532.0,0.001]
[1744071280349,0.251464,79535.0,79532.0,0.001]
[1744071280569,0.252464,79535.0,79534.0,0.001]
[1744071280937,0.001,79535.0,79534.0,0.001]
[1744071281180,0.252461,79535.0,79534.0,0.002]
[1744071281539,0.012572,79537.0,79532.0,0.264043]
[1744071281741,0.264027,79537.0,79532.0,0.264043]
[1744071281918,0.001,79535.0,79534.0,0.001]
[1744071282381,0.252461,79535.0,79534.0,0.001]
[1744071282678,0.265034,79535.0,79534.0,0.001]
[1744071282879,0.265034,79535.0,79534.0,0.002]
[1744071283130,0.265034,79535.0,79534.0,0.001]
[1744071283329,0.264064,79527.0,79520.0,0.26408]
[1744071283611,0.012574,79527.0,79522.0,0.264077]
[1744071283788,0.264056,79529.0,79523.0,0.012574]
[1744071283954,0.012574,79528.0,79523.0,0.012574]
[1744071284149,0.251486,79527.0,79523.0,0.012574]
[1744071284349,0.012574,79529.0,79524.0,0.26407]
[1744071284548,0.264043,79533.0,79526.0,0.25149]
[1744071284753,0.264035,79535.0,79530.0,0.251474]
[1744071284955,0.26402,79540.0,79532.0,0.251471]
[1744071285157,0.34,79541.0,79535.0,0.264034]
[1744071285355,0.604017,79541.0,79535.0,0.012573]
[1744071285598,0.012572,79538.0,79531.0,0.264044]
[1744071285802,0.012572,79538.0,79533.0,0.251467]
[1744071286158,0.012573,79535.0,79521.0,0.251499]
[1744071286350,0.012573,79531.0,79523.0,0.012574]
[1744071286554,0.012573,79535.0,79524.0,0.012574]
[1744071286745,0.26402,79540.0,79528.0,0.012574]
[1744071287094,0.012573,79534.0,79527.0,0.012574]
[1744071287298,0.012573,79534.0,79528.0,0.264056]
[1744071287501,0.264037,79535.0,79529.0,0.264051]
[1744071287727,0.16954796,79543.0,79531.0,0.012573]
[1744071287883,0.352571,79542.0,79537.0,0.012572]
[1744071288087,0.001,79540.0,79537.0,0.012572]
[1744071288582,0.001,79540.0,79533.0,0.012573]
[1744071288942,0.001,79540.0,79536.0,0.012572]
[1744071289755,0.001,79540.0,79536.0,0.264029]
[1744071290160,0.002,79540.0,79537.0,0.001]
[1744071290391,0.001,79540.0,79537.0,0.001]
[1744071290590,0.012572,79541.0,79536.0,0.264029]
[1744071290793,0.001,79540.0,79537.0,0.264024]
[1744071290950,0.002,79540.0,79537.0,0.264024]
[1744071291157,0.002,79540.0,79539.0,0.251448]
[1744071291505,0.003,79540.0,79537.0,0.265024]
[1744071291846,0.003,79540.0,79539.0,0.251448]
[1744071292049,0.16954796,79543.0,79539.0,0.251448]
[1744071292378,0.15008,79543.0,79541.0,0.25144]
[1744071292581,0.0001678,79545.0,79541.0,0.25144]
[1744071292788,0.0001678,79545.0,79542.0,0.264007]
[1744071292963,0.0001678,79545.0,79539.0,0.26502]
[1744071293165,0.2641708,79545.0,79539.0,0.26502]
[1744071293593,0.001,79541.0,79539.0,0.26502]
[1744071293761,0.001,79541.0,79540.0,0.012572]
[1744071293966,0.001,79543.0,79541.0,0.001]
[1744071294300,0.001,79543.0,79541.0,0.252442]
[1744071294506,0.001,79543.0,79541.0,0.001]
[1744071295461,0.012571,79542.0,79541.0,0.001]
[1744071295657,0.012571,79542.0,79541.0,0.002]
[1744071296490,0.012571,79542.0,79541.0,0.001]
[1744071296764,0.013571,79542.0,79541.0,0.002]
[1744071296971,0.013571,79542.0,79541.0,0.001]
[1744071297298,0.014571,79542.0,79541.0,0.002]
[1744071300094,0.002,79542.0,79541.0,0.002]
[1744071300713,0.014571,79542.0,79541.0,0.002]
[1744071300918,0.002,79542.0,79541.0,0.014572]
[1744071301176,0.002,79542.0,79541.0,0.110472]
[1744071301372,0.002,79542.0,79541.0,0.2398607]
[1744071301839,0.002,79542.0,79541.0,0.110472]
[1744071302035,0.001,79542.0,79541.0,0.360914]
[1744071302442,0.001,79542.0,79541.0,0.369914]
[1744071302577,0.0001678,79545.0,79544.0,0.012571]
[1744071302778,0.0001678,79545.0,79544.0,0.40301584]
[1744071302980,0.0001678,79545.0,79544.0,0.3933927]
[1744071303197,0.0001678,79545.0,79541.0,0.1139]
[1744071303417,0.012571,79542.0,79541.0,0.009]
[1744071304101,0.0001678,79545.0,79543.0,0.0498]
[1744071304378,6.495e-05,79545.0,79544.0,0.3933927]
[1744071304514,6.495e-05,79545.0,79544.0,0.4484927]
[1744071304717,6.495e-05,79545.0,79544.0,0.4982927]
[1744071304921,6.495e-05,79545.0,79544.0,0.4892927]
[1744071306542,6.495e-05,79545.0,79544.0,0.4982927]
[1744071306765,6.495e-05,79545.0,79544.0,0.5072927]
[1744071307215,6.495e-05,79545.0,79544.0,0.4982927]
[1744071307430,6.495e-05,79545.0,79544.0,0.5072927]
[1744071307851,6.495e-05,79545.0,79544.0,0.4982927]
[1744071308083,6.495e-05,79545.0,79544.0,0.89975059]
[1744071310552,0.26397,79555.0,79549.0,0.01257]
[1744071310775,0.26397,79555.0,79545.0,0.012571]
[1744071310776,0.01257,79552.0,79545.0,0.012571]
[1744071310974,0.263979,79552.0,79545.0,0.012571]
[1744071311183,0.01257,79549.0,79544.0,0.45655789]
[1744071311554,0.01257,79549.0,79544.0,0.44755789]
[1744071311782,0.264001,79545.0,79544.0,0.40145789]
[1744071312021,0.264001,79545.0,79544.0,0.39245789]
[1744071312929,0.263985,79550.0,79544.0,0.39245789]
[1744071312930,0.012569,79555.0,79547.0,0.012571]
[1744071313138,0.251401,79554.0,79549.0,0.009]
[1744071313360,0.34,79562.0,79552.0,0.01257]
[1744071313576,0.251385,79559.0,79553.0,0.01257]
[1744071313696,0.01257,79551.0,79544.0,0.67446089]
[1744071313896,0.251398,79555.0,79548.0,0.26399]
[1744071314106,0.012568,79563.0,79555.0,0.012569]
[1744071314305,0.012568,79563.0,79554.0,0.251398]
[1744071314306,0.263951,79560.0,79554.0,0.01257]
[1744071314511,0.263951,79560.0,79554.0,0.263968]
[1744071314727,0.012569,79560.0,79554.0,0.263968]
[1744071314928,0.263952,79560.0,79554.0,0.263968]
[1744071315450,0.012568,79561.0,79554.0,0.263968]
[1744071315451,0.012568,79561.0,79556.0,0.251394]
[1744071315651,0.014569,79560.0,79554.0,0.264968]
[1744071315854,0.002,79560.0,79556.0,0.012569]
[1744071316264,0.26395,79561.0,79556.0,0.012569]
[1744071316437,0.26395,79561.0,79556.0,0.263964]
[1744071316643,0.251385,79559.0,79556.0,0.001]
[1744071316843,0.012569,79558.0,79556.0,0.001]
[1744071317109,0.012569,79559.0,79556.0,0.001]
[1744071317222,0.26595,79561.0,79556.0,0.001]
[1744071317223,0.002,79561.0,79556.0,0.001]
[1744071317432,0.002,79561.0,79560.0,0.313851]
[1744071317635,0.004,79561.0,79560.0,0.4432397]
[1744071317832,0.002,79561.0,79560.0,0.4432397]
[1744071318034,0.14996,79573.0,79569.0,0.251353]
[1744071318239,0.0001679,79574.0,79573.0,0.263908]
[1744071318465,0.0001679,79574.0,79570.0,0.251349]
[1744071318668,0.0001679,79574.0,79573.0,0.012567]
[1744071318866,0.012567,79568.0,79562.0,0.012568]
[1744071319065,0.0001679,79574.0,79564.0,0.012568]
[1744071319266,0.012568,79567.0,79562.0,0.012568]
[1744071319447,0.263921,79569.0,79563.0,0.251373]
[1744071319641,0.012567,79569.0,79563.0,0.65639889]
[1744071319842,0.251357,79568.0,79563.0,0.39245789]
[1744071320086,0.012567,79569.0,79563.0,0.40502589]
[1744071320400,0.263924,79569.0,79563.0,0.39245789]
[1744071320612,0.012568,79567.0,79563.0,0.39245789]
[1744071320834,0.263924,79569.0,79563.0,0.40145789]
[1744071321032,0.012567,79568.0,79563.0,0.40145789]
[1744071321336,0.012567,79572.0,79565.0,0.251366]
[1744071321477,0.012568,79567.0,79563.0,0.40145789]
[1744071321682,0.012568,79565.0,79563.0,0.40145789]
[1744071322119,0.263937,79564.0,79563.0,0.40145789]
[1744071322346,0.263932,79566.0,79563.0,0.40145789]
[1744071322537,0.263937,79564.0,79563.0,0.009]
[1744071322759,0.263957,79559.0,79552.0,0.40502789]
[1744071322916,0.012569,79555.0,79552.0,0.39245789]
[1744071323280,0.01257,79553.0,79552.0,0.39245789]
[1744071324133,0.012569,79555.0,79552.0,0.39245789]
[1744071324566,0.012569,79559.0,79553.0,0.251404]
[1744071324744,0.263957,79558.0,79553.0,0.251404]
[1744071324928,0.263957,79558.0,79552.0,0.41402789]
[1744071325271,0.251398,79555.0,79552.0,0.40145789]
[1744071325566,0.263974,79553.0,79552.0,0.009]
[1744071325766,0.251417,79549.0,79544.0,0.264001]
[1744071325913,0.263974,79553.0,79547.0,0.012571]
[1744071326108,0.263974,79553.0,79552.0,0.001]
[1744071326528,0.263974,79553.0,79547.0,0.012571]
[1744071326737,0.01257,79552.0,79547.0,0.012571]
[1744071327113,0.263987,79549.0,79544.0,0.018]
[1744071327324,0.263987,79549.0,79544.0,0.009]
[1744071327551,0.251423,79547.0,79544.0,0.009]
[1744071327759,0.263994,79547.0,79544.0,0.009]
[1744071327988,0.012571,79547.0,79544.0,0.009]
[1744071328288,0.251411,79551.0,79546.0,0.251426]
[1744071328512,0.263981,79551.0,79545.0,0.264001]
[1744071328671,0.263981,79551.0,79547.0,0.009]
[1744071329438,0.263981,79551.0,79545.0,0.264001]
[1744071329648,0.01257,79550.0,79545.0,0.264001]
[1744071329993,0.01257,79550.0,79547.0,0.009]
[1744071330153,0.263987,79550.0,79547.0,0.009]
[1744071330359,0.012571,79548.0,79547.0,0.009]
[1744071330582,0.263987,79550.0,79544.0,0.264002]
[1744071330783,0.263987,79550.0,79545.0,0.021571]
[1744071331387,0.263987,79550.0,79545.0,0.012571]
[1744071332301,0.01257,79551.0,79546.0,0.263997]
[1744071332808,0.01257,79551.0,79547.0,0.009]
[1744071333021,0.263981,79551.0,79547.0,0.009]
[1744071333221,0.263986,79550.0,79545.0,0.021571]
[1744071333423,0.263986,79550.0,79545.0,0.012571]
[1744071333641,0.263986,79550.0,79546.0,0.018]
[1744071334044,0.263986,79550.0,79546.0,0.009]
[1744071334189,0.251394,79557.0,79549.0,0.01257]
[1744071334376,0.263957,79559.0,79554.0,0.01257]
[1744071334576,0.263939,79564.0,79556.0,0.251393]
[1744071334801,0.26395,79561.0,79554.0,0.263971]
[1744071335006,0.012569,79560.0,79554.0,0.263971]
[1744071335202,0.251388,79559.0,79554.0,0.263971]
[1744071335791,0.251388,79559.0,79556.0,0.001]
[1744071335792,0.263957,79559.0,79556.0,0.001]
[1744071335984,0.263961,79557.0,79556.0,0.001]
[1744071336177,0.012569,79557.0,79556.0,0.001]
[1744071336527,0.012569,79558.0,79554.0,0.001]
[1744071336727,0.012569,79558.0,79553.0,0.263974]
[1744071336967,0.26396,79558.0,79553.0,0.263974]
[1744071337149,0.012569,79557.0,79550.0,0.01257]
[1744071337343,0.012569,79557.0,79548.0,0.251418]
[1744071337344,0.01257,79553.0,79546.0,0.263997]
[1744071337623,0.012569,79555.0,79548.0,0.25142]
[1744071337828,0.003,79557.0,79551.0,0.01257]
[1744071338026,0.004,79559.0,79558.0,0.263957]
[1744071338470,0.002,79559.0,79558.0,0.263957]
[1744071339047,0.14992,79572.0,79571.0,0.263914]
[1744071340388,0.15292,79572.0,79571.0,0.264914]
[1744071341257,0.15292,79572.0,79571.0,0.252347]
[1744071341372,0.003,79572.0,79571.0,0.252347]
[1744071341941,0.003,79572.0,79571.0,0.001]
[1744071342282,0.005,79572.0,79571.0,0.002]
[1744071342485,0.29931761,79572.0,79571.0,0.002]
[1744071342685,0.34501761,79572.0,79571.0,0.002]
[1744071342882,0.84334055,79572.0,79571.0,0.001]
[1744071343083,0.012569,79558.0,79549.0,0.251414]
[1744071343419,0.263957,79558.0,79549.0,0.263984]
[1744071343642,0.263957,79558.0,79550.0,0.251413]
[1744071344406,0.266957,79558.0,79557.0,0.39345789]
[1744071345560,0.275957,79558.0,79557.0,0.39445789]
[1744071346112,0.275957,79558.0,79557.0,0.002]
[1744071347937,0.321657,79558.0,79557.0,0.002]
[1744071348559,0.661657,79558.0,79557.0,0.002]
[1744071348779,0.321657,79558.0,79557.0,0.002]
[1744071349092,0.33619785,79558.0,79557.0,0.002]
[1744071349293,0.88942879,79558.0,79557.0,0.002]
[1744071350078,0.93622879,79558.0,79557.0,1e-06]
[1744071350259,0.251465,79534.0,79527.0,0.26406]
[1744071350414,0.251458,79537.0,79528.0,0.012574]
[1744071350619,0.012572,79536.0,79531.0,0.012573]
[1744071352468,0.012573,79535.0,79529.0,0.012574]
[1744071352668,0.012573,79535.0,79531.0,0.003]
[1744071353212,0.266033,79536.0,79531.0,0.015573]
[1744071353418,0.265033,79536.0,79531.0,0.012573]
[1744071353774,0.001,79535.0,79531.0,0.012573]
[1744071354010,0.266037,79535.0,79529.0,0.264054]
[1744071354210,0.26404,79533.0,79528.0,0.012574]
[1744071354564,0.26404,79533.0,79528.0,0.264054]
[1744071354764,0.266037,79535.0,79530.0,0.251477]
[1744071355006,0.266037,79535.0,79530.0,0.26405]
[1744071355195,0.265037,79535.0,79530.0,0.26405]
[1744071355557,0.001,79536.0,79533.0,0.012573]
[1744071356093,0.264023,79539.0,79532.0,0.251471]
[1744071356094,0.001,79535.0,79532.0,0.251471]
[1744071356486,0.283036,79535.0,79527.0,0.251486]
[1744071356686,0.012573,79534.0,79528.0,0.012574]
[1744071356867,0.012573,79534.0,79527.0,0.251486]
[1744071357071,0.26404,79533.0,79525.0,0.40503189]
[1744071357270,0.251482,79529.0,79523.0,0.251499]
[1744071357490,0.012574,79526.0,79520.0,0.012575]
[1744071357691,0.251486,79527.0,79521.0,0.26408]
[1744071357894,0.012574,79528.0,79522.0,0.012575]
[1744071358155,0.251482,79529.0,79523.0,0.264073]
[1744071358480,0.251482,79529.0,79524.0,0.264067]
[1744071358754,0.26405,79530.0,79524.0,0.264067]
[1744071358961,0.26405,79530.0,79524.0,0.012574]
[1744071359133,0.251484,79528.0,79523.0,0.264073]
[1744071359335,0.012573,79534.0,79523.0,0.264073]
[1744071359535,0.001,79529.0,79526.0,0.25149]
[1744071359761,0.001,79529.0,79526.0,0.264064]
[1744071359964,0.021573,79534.0,79528.0,0.264057]
[1744071360190,0.006,79530.0,79528.0,0.264057]
[1744071360517,0.006,79530.0,79528.0,0.012574]
[1744071360713,0.001,79529.0,79528.0,0.012574]
[1744071360919,0.001,79529.0,79526.0,0.267064]
[1744071361476,0.001,79529.0,79527.0,0.012574]
[1744071361923,0.001,79529.0,79526.0,0.267064]
[1744071362114,0.001,79529.0,79526.0,0.003]
[1744071362295,0.013574,79529.0,79526.0,0.003]
[1744071362653,0.002,79529.0,79527.0,0.002]
[1744071363073,0.264048,79531.0,79525.0,0.264064]
[1744071363417,0.002,79529.0,79528.0,0.003]
[1744071364061,0.015574,79529.0,79528.0,0.003]
[1744071364273,0.014574,79529.0,79527.0,0.003]
[1744071364494,0.267057,79529.0,79528.0,0.003]
[1744071364737,0.266057,79529.0,79528.0,0.003]
[1744071365423,0.606057,79529.0,79528.0,0.003]
[1744071365576,0.79668655,79529.0,79528.0,0.003]
[1744071365787,0.84458655,79529.0,79528.0,0.003]
[1744071365980,0.84558655,79529.0,79528.0,0.005]
[1744071366612,0.84458655,79529.0,79528.0,0.003]
[1744071367263,0.264104,79514.0,79511.0,0.002]
[1744071367413,0.413984,79514.0,79511.0,0.002]
[1744071368216,0.43539569,79514.0,79511.0,0.002]
[1744071368743,0.44439569,79514.0,79511.0,0.002]
[1744071368948,0.45339569,79514.0,79511.0,0.002]
[1744071371274,0.70609416,79514.0,79511.0,0.002]
[1744071371845,0.018,79514.0,79513.0,0.0129118]
[1744071372464,0.264087,79520.0,79513.0,0.0129118]
[1744071372679,0.012575,79520.0,79513.0,0.0129118]
[1744071372881,0.251516,79518.0,79513.0,0.0129118]
[1744071373092,0.012575,79520.0,79513.0,0.0129118]
[1744071373464,0.413985,79526.0,79519.0,0.012575]
[1744071374002,0.009,79520.0,79518.0,0.0474]
[1744071374559,0.012575,79521.0,79518.0,0.0474]
[1744071374764,0.012575,79522.0,79518.0,0.0474]
[1744071374969,0.009,79520.0,79518.0,0.0474]
[1744071375398,0.021574,79526.0,79520.0,0.264082]
[1744071375599,0.009,79526.0,79519.0,0.012575]
[1744071375812,0.009,79526.0,79522.0,0.012575]
[1744071376606,0.015,79526.0,79521.0,0.251503]
[1744071376807,0.251493,79525.0,79520.0,0.001]
[1744071377006,0.251499,79524.0,79522.0,0.001]
[1744071377195,0.012574,79523.0,79522.0,0.001]
[1744071377846,0.012575,79521.0,79520.0,0.001]
[1744071378448,0.264104,79514.0,79511.0,0.002]
[1744071378622,0.414024,79514.0,79511.0,0.002]
[1744071380183,0.14992,79514.0,79511.0,0.002]
[1744071380385,0.009,79514.0,79513.0,0.0013358]
[1744071380547,0.018,79514.0,79513.0,0.0013358]
[1744071380950,0.018,79514.0,79513.0,0.0139118]
[1744071381390,0.009,79514.0,79513.0,0.0139118]
[1744071381581,0.012575,79520.0,79514.0,0.251528]
[1744071381786,0.009,79514.0,79513.0,0.0139118]
[1744071382519,0.264087,79519.0,79513.0,0.2644398]
[1744071382726,0.002,79514.0,79513.0,0.2764398]
[1744071383493,0.001,79514.0,79513.0,0.2724398]
[1744071383851,0.001,79514.0,79513.0,0.66089769]
[1744071384226,0.001,79514.0,79513.0,0.70839769]
[1744071384428,0.002,79514.0,79513.0,0.71239769]
[1744071384952,0.002,79514.0,79513.0,0.84178639]
[1744071385530,0.004,79519.0,79518.0,0.26409]
[1744071385736,0.004,79519.0,79518.0,0.8262787]
[1744071385963,0.14984,79541.0,79540.0,0.264017]
[1744071386162,0.34,79553.0,79549.0,0.263984]
[1744071386361,0.34,79553.0,79546.0,0.012571]
[1744071386362,0.263974,79553.0,79548.0,0.25142]
[1744071386882,0.35257,79553.0,79548.0,0.25142]
[1744071387042,0.01257,79551.0,79546.0,0.012571]
[1744071387243,0.35257,79553.0,79548.0,0.012571]
[1744071387443,0.14984,79554.0,79553.0,0.01257]
[1744071388180,0.14984,79554.0,79553.0,0.251404]
[1744071388387,0.14984,79554.0,79553.0,0.263974]
[1744071389504,0.012569,79559.0,79553.0,0.01457]
[1744071389661,0.009,79554.0,79553.0,0.01457]
[1744071390402,0.012569,79558.0,79553.0,0.01257]
[1744071390602,0.012569,79558.0,79553.0,0.01357]
[1744071391738,0.263961,79557.0,79553.0,0.001]
[1744071391942,0.01257,79554.0,79553.0,0.001]
[1744071392146,0.02157,79554.0,79553.0,0.002]
[1744071392341,0.02157,79554.0,79553.0,0.001]
[1744071392508,0.02157,79554.0,79553.0,0.002]
[1744071392844,0.02157,79554.0,79553.0,0.003]
[1744071393005,0.01257,79549.0,79546.0,0.39245789]
[1744071393205,0.251423,79547.0,79546.0,0.39245789]
[1744071393406,0.263994,79547.0,79546.0,0.39245789]
[1744071394194,0.264057,79528.0,79523.0,0.012574]
[1744071394398,0.264057,79528.0,79519.0,0.25151]
[1744071394399,0.012574,79528.0,79519.0,0.012575]
[1744071394597,0.012574,79523.0,79517.0,0.058475]
[1744071394800,0.26407,79524.0,79519.0,0.012575]
[1744071395250,0.251502,79522.0,79517.0,0.012575]
[1744071395455,0.012575,79518.0,79515.0,0.12377496]
[1744071395635,0.264086,79520.0,79515.0,0.12377496]
[1744071395837,0.251516,79518.0,79515.0,0.12377496]
[1744071396042,0.012576,79514.0,79511.0,0.002]
[1744071396238,0.264104,79514.0,79511.0,0.002]
[1744071397053,0.40803355,79514.0,79511.0,0.002]
[1744071397256,0.74803355,79514.0,79511.0,0.002]
[1744071397700,1.25803355,79514.0,79511.0,0.002]
[1744071398010,0.502576,79512.0,79511.0,8e-07]
[1744071398160,0.61867685,79504.0,79503.0,0.09404209]
[1744071398358,0.61867685,79504.0,79503.0,0.08241148]
[1744071398359,0.84056863,79504.0,79503.0,0.08241148]
[1744071398583,0.87309686,79504.0,79503.0,0.04326039]
[1744071399186,0.01258,79491.0,79490.0,1e-08]
[1744071399388,0.16242,79491.0,79490.0,1e-08]
[1744071399590,0.16242,79491.0,79481.0,0.0023358]
[1744071399591,0.791613,79487.0,79481.0,0.0023358]
[1744071399754,0.012583,79469.0,79465.0,0.0003358]
[1744071399949,0.012586,79453.0,79445.0,0.0464]
[1744071400179,0.012586,79453.0,79422.0,0.34]
[1744071400180,0.3936987,79452.0,79434.0,0.00922007]
[1744071400399,0.42834359,79452.0,79432.0,0.058989]
[1744071400642,0.46356885,79452.0,79433.0,0.264372]
[1744071400781,0.46356885,79452.0,79432.0,0.058989]
[1744071400782,0.46356885,79452.0,79432.0,0.310774]
[1744071400978,0.46356885,79452.0,79429.0,0.12525979]
[1744071401177,0.82362012,79452.0,79429.0,0.12525979]
[1744071401461,0.82362012,79452.0,79433.0,0.012589]
[1744071401462,0.78897523,79452.0,79433.0,0.012589]
[1744071401597,0.78897523,79452.0,79431.0,0.012589]
[1744071401777,0.78897523,79452.0,79433.0,0.0003364]
[1744071402403,0.76892396,79452.0,79433.0,0.0003364]
[1744071402631,0.81256885,79452.0,79451.0,0.003]
[1744071402858,0.85562092,79452.0,79451.0,0.003]
[1744071403620,0.82097603,79452.0,79451.0,0.003]
[1744071404188,0.78575077,79452.0,79451.0,0.003]
[1744071404937,0.53402677,79452.0,79451.0,0.003]
[1744071405193,0.82097603,79452.0,79451.0,0.003]
[1744071405514,0.77675077,79452.0,79451.0,0.003]
[1744071405722,0.50148592,79452.0,79451.0,0.002]
[1744071405947,0.51048592,79452.0,79451.0,0.002]
[1744071406166,0.349,79452.0,79451.0,0.002]
[1744071406345,0.49892,79452.0,79451.0,0.002]
[1744071406571,0.50792,79452.0,79451.0,0.003]
[1744071407234,0.018,79452.0,79451.0,0.015586]
[1744071408012,0.018,79452.0,79451.0,0.061286]
[1744071408395,0.14992,79467.0,79458.0,0.012585]
[1744071408646,0.012585,79457.0,79451.0,0.002]
[1744071408821,0.27331,79452.0,79451.0,0.002]
[1744071409024,0.030586,79452.0,79451.0,0.002]
[1744071409248,0.021586,79452.0,79451.0,0.002]
[1744071409460,0.012586,79452.0,79451.0,0.002]
[1744071410207,0.009,79452.0,79451.0,0.002]
[1744071410423,0.021586,79452.0,79451.0,0.002]
[1744071411570,0.030586,79452.0,79451.0,0.002]
[1744071412092,0.039586,79452.0,79451.0,0.003]
[1744071412263,0.021586,79452.0,79451.0,0.002]
[1744071412468,0.180546,79452.0,79451.0,0.003]
[1744071413747,0.520546,79452.0,79451.0,0.003]
[1744071413928,0.6499347,79452.0,79451.0,0.003]
[1744071415085,0.66447555,79452.0,79451.0,0.003]
[1744071415328,1.66187555,79452.0,79451.0,0.003]
[1744071416053,1.60949272,79452.0,79451.0,0.003]
[1744071416248,1.32647481,79452.0,79451.0,0.003]
[1744071416453,0.012589,79434.0,79433.0,0.0003364]
[1744071417469,0.04781426,79434.0,79433.0,0.0003364]
[1744071417666,0.05681426,79434.0,79433.0,0.0003364]
[1744071418450,0.05781426,79434.0,79433.0,0.0093364]
[1744071418628,0.18720296,79434.0,79433.0,0.0093364]
[1744071419327,0.18620296,79434.0,79433.0,0.0003364]
[1744071419527,0.19520296,79434.0,79433.0,0.0013364]
[1744071420732,0.1599777,79434.0,79433.0,0.0013364]
[1744071421316,0.030589,79434.0,79433.0,0.0013364]
[1744071421591,0.16792,79434.0,79433.0,0.0013364]
[1744071422129,0.410701,79434.0,79433.0,0.0013364]
[1744071422333,0.42329,79434.0,79433.0,0.0013364]
[1744071422634,0.43029,79434.0,79433.0,0.0023364]
[1744071423810,0.009,79434.0,79433.0,0.0013364]
[1744071424087,0.018,79434.0,79433.0,0.2657094]
[1744071424715,0.018,79434.0,79433.0,0.0139254]
[1744071424933,0.162547,79441.0,79434.0,0.012589]
[1744071425110,0.14996,79441.0,79436.0,0.012588]
[1744071425305,0.14996,79441.0,79438.0,0.251765]
[1744071425530,0.14996,79441.0,79437.0,0.264359]
[1744071425741,0.14996,79441.0,79439.0,0.251765]
[1744071425884,0.264336,79444.0,79439.0,0.251765]
[1744071426223,0.021587,79441.0,79435.0,0.264365]
[1744071426800,0.009,79441.0,79437.0,0.264359]
[1744071426998,0.009,79441.0,79438.0,0.012588]
[1744071427199,0.018,79441.0,79435.0,0.264365]
[1744071427425,0.251765,79439.0,79435.0,0.251777]
[1744071427675,0.012587,79442.0,79436.0,0.012588]
[1744071427854,0.009,79441.0,79436.0,0.012588]
[1744071428057,0.018,79441.0,79438.0,0.012588]
[1744071428352,0.009,79441.0,79438.0,0.012588]
[1744071428504,0.012588,79440.0,79435.0,0.251777]
[1744071428707,0.273353,79439.0,79433.0,0.2521204]
[1744071428907,0.009,79439.0,79436.0,0.012588]
[1744071429111,0.009,79439.0,79433.0,0.0003364]
[1744071429329,0.009,79439.0,79433.0,0.2521194]
[1744071429532,0.009,79439.0,79437.0,0.264358]
[1744071429736,0.009,79439.0,79437.0,0.012588]
[1744071430160,0.009,79439.0,79435.0,0.251778]
[1744071430368,0.009,79439.0,79437.0,0.264358]
[1744071430726,0.009,79440.0,79437.0,0.012588]
[1744071431128,0.009,79440.0,79435.0,0.251778]
[1744071431471,0.260765,79440.0,79435.0,0.251778]
[1744071431646,0.251771,79437.0,79433.0,0.0003364]
[1744071431847,0.264369,79435.0,79433.0,0.0003364]
[1744071432152,0.012589,79434.0,79433.0,0.0003364]
[1744071434293,0.021589,79434.0,79433.0,0.0003364]
[1744071434919,0.030589,79434.0,79433.0,0.0003364]
[1744071435326,0.1599777,79434.0,79433.0,0.0003364]
[1744071435479,0.4999777,79434.0,79433.0,0.0003364]
[1744071436062,0.66451855,79434.0,79433.0,4e-07]
[1744071436634,0.65551855,79434.0,79433.0,4e-07]
[1744071436965,1.06731855,79434.0,79433.0,4e-07]
[1744071437163,1.05831855,79434.0,79433.0,4e-07]
[1744071437542,1.10116373,79434.0,79433.0,4e-07]
[1744071437980,1.09216373,79434.0,79433.0,4e-07]
[1744071438165,1.10116373,79434.0,79433.0,4e-07]
[1744071438366,1.10420248,79434.0,79433.0,4e-07]
[1744071438718,1.06731855,79434.0,79433.0,4e-07]
[1744071439119,0.34,79421.0,79419.0,0.0003362]
[1744071439373,1.40830555,79420.0,79419.0,0.0003362]
[1744071440314,1.537711,79420.0,79419.0,0.0003362]
[1744071440440,1.40830555,79420.0,79419.0,0.0003362]
[1744071441619,1.42630555,79420.0,79419.0,0.0003362]
[1744071442326,1.4117647,79420.0,79419.0,0.0003362]
[1744071442873,1.2618047,79420.0,79419.0,0.0003362]
[1744071443073,1.4117647,79420.0,79419.0,0.0003362]
[1744071444681,1.43109354,79420.0,79419.0,0.0003362]
[1744071445198,1.44563439,79420.0,79419.0,0.0003362]
[1744071446199,0.93563439,79420.0,79419.0,0.0003362]
[1744071449539,0.95532565,79420.0,79419.0,0.0003362]
[1744071451064,0.6007848,79420.0,79419.0,0.0003362]
[1744071451275,0.19987984,79420.0,79419.0,0.0003362]
[1744071451673,0.04991984,79420.0,79419.0,0.0003362]
[1744071452050,0.19987984,79420.0,79419.0,0.0003362]
[1744071452756,0.34380939,79420.0,79419.0,0.0003362]
[1744071452928,0.47321484,79420.0,79419.0,0.0003362]
[1744071453193,0.34380939,79420.0,79419.0,0.0003362]
[1744071455028,0.68380939,79420.0,79419.0,0.0003362]